[Event "Championnat du monde jeunes U10"]
[Date "2024.11.25"]
[White "Chen, Pin-Jui"]
[Black "Kais, Kristofer"]
[WhiteElo "1505"]
[BlackElo "1723"]
[Round "10.44"]
[Result "0-1"]
[TimeControl "5400+30"]

1. e4 {[%clk 1:30:54]} 1... c5 {[%clk 1:30:51]} 2. Nf3 {[%clk 1:31:15]} 2... g6
{[%clk 1:31:17]} 3. d4 {[%clk 1:31:28]} 3... cxd4 {[%clk 1:31:41]} 4. Nxd4
{[%clk 1:31:51]} 4... Nc6 {[%clk 1:32:04]} 5. c4 {[%clk 1:32:15]} 5... Nf6
{[%clk 1:32:25]} 6. Nc3 {[%clk 1:32:40]} 6... Nxd4 {[%clk 1:32:47]} 7. Qxd4
{[%clk 1:33:00]} 7... d6 {[%clk 1:33:15]} 8. Be2 {[%clk 1:33:10]} 8... Bg7
{[%clk 1:33:33]} 9. O-O {[%clk 1:33:30]} 9... O-O {[%clk 1:33:55]} 10. Qd3
{[%clk 1:33:56]} 10... Be6 {[%clk 1:31:59]} 11. Be3 {[%clk 1:33:05]} 11... Rc8
{[%clk 1:30:31]} 12. b3 {[%clk 1:32:51]} 12... Qa5 {[%clk 1:27:07]} 13. Rac1
{[%clk 1:30:02]} 13... a6 {[%clk 1:21:15]} 14. Rfd1 {[%clk 1:20:57]} 14... Nd7
{[%clk 1:13:02]} 15. f3 {[%clk 1:08:50]} 15... b5 {[%clk 0:56:59]} 16. Nd5
{[%clk 0:56:00]} 16... Bxd5 {[%clk 0:54:43]} 17. exd5 {[%clk 0:53:23]} 17...
bxc4 {[%clk 0:49:25]} 18. bxc4 {[%clk 0:51:47]} 18... Qxa2 {[%clk 0:46:19]} 19.
Rc2 {[%clk 0:43:36]} 19... Qa5 {[%clk 0:39:28]} 20. Rb1 {[%clk 0:41:26]} 20...
Rb8 {[%clk 0:35:58]} 21. Rcc1 {[%clk 0:38:18]} 21... Nc5 {[%clk 0:31:31]} 22.
Qc2 {[%clk 0:31:53]} 22... Qa3 {[%clk 0:27:15]} 23. Bxc5 {[%clk 0:28:03]} 23...
Qxc5+ {[%clk 0:26:35]} 24. Kh1 {[%clk 0:28:24]} 24... a5 {[%clk 0:22:27]} 25.
Qa2 {[%clk 0:25:24]} 25... Rb4 {[%clk 0:18:28]} 26. Bd1 {[%clk 0:20:23]} 26...
Rfb8 {[%clk 0:16:58]} 27. Rxb4 {[%clk 0:15:25]} 27... Rxb4 {[%clk 0:15:13]} 28.
Rc2 {[%clk 0:13:17]} 28... Qd4 {[%clk 0:13:11]} 29. Be2 {[%clk 0:11:52]} 29...
Qf2 {[%clk 0:12:33]} 30. h3 {[%clk 0:05:47]} 30... Qe1+ {[%clk 0:12:24]} 31. Bf1
{[%clk 0:05:17]} 31... Qxf1+ {[%clk 0:12:49]} 32. Kh2 {[%clk 0:05:42]} 32...
Be5+ {[%clk 0:13:12]} 33. g3 {[%clk 0:06:08]} 33... Rb1 {[%clk 0:13:36]} 0-1

[Variant "Standard"]
[Site "Europe Echecs"]

[Event "Championnat du monde jeunes U10"]
[Date "2024.11.25"]
[White "Aguike, Toshiya"]
[Black "Ismailov, Omarbek"]
[WhiteElo "1716"]
[BlackElo "1625"]
[Round "10.45"]
[Result "0-1"]
[TimeControl "5400+30"]

1. e4 {[%clk 1:30:57]} 1... c5 {[%clk 1:30:52]} 2. Nf3 {[%clk 1:31:21]} 2... Nc6
{[%clk 1:31:18]} 3. d4 {[%clk 1:31:43]} 3... cxd4 {[%clk 1:31:40]} 4. Nxd4
{[%clk 1:32:08]} 4... Nf6 {[%clk 1:31:59]} 5. Nc3 {[%clk 1:32:31]} 5... e6
{[%clk 1:32:23]} 6. Ndb5 {[%clk 1:32:50]} 6... Bb4 {[%clk 1:32:39]} 7. a3 {[%clk
1:33:13]} 7... Bxc3+ {[%clk 1:32:40]} 8. Nxc3 {[%clk 1:33:30]} 8... d5 {[%clk
1:33:01]} 9. exd5 {[%clk 1:32:39]} 9... Nxd5 {[%clk 1:33:19]} 10. Nxd5 {[%clk
1:32:38]} 10... Qxd5 {[%clk 1:33:44]} 11. Qxd5 {[%clk 1:32:52]} 11... exd5
{[%clk 1:34:09]} 12. Bf4 {[%clk 1:29:49]} 12... Bf5 {[%clk 1:34:09]} 13. O-O-O
{[%clk 1:29:53]} 13... O-O-O {[%clk 1:34:25]} 14. Bb5 {[%clk 1:28:07]} 14...
Rhe8 {[%clk 1:30:19]} 15. Rd2 {[%clk 1:27:16]} 15... Re4 {[%clk 1:28:03]} 16.
Bg3 {[%clk 1:27:25]} 16... Re6 {[%clk 1:13:26]} 17. Rhd1 {[%clk 1:26:59]} 17...
d4 {[%clk 1:05:04]} 18. c3 {[%clk 1:26:32]} 18... Na5 {[%clk 1:05:10]} 19. Ba4
{[%clk 1:24:44]} 19... d3 {[%clk 1:05:28]} 20. Bc2 {[%clk 1:18:06]} 20... Rd5
{[%clk 0:58:15]} 21. b4 {[%clk 1:11:23]} 21... dxc2 {[%clk 0:57:54]} 22. Rxd5
{[%clk 1:11:20]} 22... Nb3+ {[%clk 0:58:17]} 23. Kb2 {[%clk 1:11:36]} 23...
cxd1=Q {[%clk 0:58:37]} 24. Rxd1 {[%clk 1:11:55]} 24... Re2+ {[%clk 0:58:54]}
25. Kxb3 {[%clk 1:09:08]} 25... Bc2+ {[%clk 0:57:52]} 26. Kc4 {[%clk 1:09:36]}
26... Bxd1 {[%clk 0:58:14]} 27. Kd3 {[%clk 1:09:59]} 27... Ra2 {[%clk 0:58:33]}
28. c4 {[%clk 1:10:01]} 28... Rxa3+ {[%clk 0:58:58]} 29. Kd4 {[%clk 1:10:28]}
29... a5 {[%clk 0:59:13]} 30. b5 {[%clk 1:10:54]} 30... Rb3 {[%clk 0:59:33]} 31.
Be5 {[%clk 1:11:17]} 31... f6 {[%clk 0:59:58]} 32. Bd6 {[%clk 1:11:42]} 32... a4
{[%clk 1:00:24]} 33. c5 {[%clk 1:12:06]} 33... a3 {[%clk 1:00:49]} 34. c6 {[%clk
1:12:23]} 34... a2 {[%clk 1:01:12]} 35. Kc5 {[%clk 1:12:48]} 35... a1=Q {[%clk
1:01:34]} 36. Kb6 Qa8 {[%clk 1:01:32]} 37. c7 {[%clk 1:13:33]} 37... Qa6+ {[%clk
1:01:42]} 38. Kc5 {[%clk 1:13:56]} 38... Rxb5+ {[%clk 1:02:08]} 39. Kd4 {[%clk
1:14:21]} 39... Qxd6+ {[%clk 1:02:28]} 40. Ke3 {[%clk 1:14:45]} 40... Rb3+
{[%clk 1:02:49]} 41. Ke4 {[%clk 1:15:07]} 41... Bc2# {[%clk 1:03:10]} 0-1

[Variant "Standard"]
[Site "Europe Echecs"]

[Event "Championnat du monde jeunes U10"]
[Date "2024.11.25"]
[White "Radiukevich, Viacheslau"]
[Black "DAmato, Raffaele"]
[WhiteElo "1484"]
[BlackElo "1695"]
[Round "10.46"]
[Result "0-1"]
[TimeControl "5400+30"]

1. e4 {[%clk 1:30:53]} 1... c5 {[%clk 1:30:59]} 2. Nf3 {[%clk 1:31:07]} 2... a6
{[%clk 1:31:23]} 3. d4 {[%clk 1:31:24]} 3... cxd4 {[%clk 1:31:36]} 4. Nxd4
{[%clk 1:31:45]} 4... e5 {[%clk 1:32:02]} 5. Nb3 {[%clk 1:32:00]} 5... Nc6
{[%clk 1:31:58]} 6. Nc3 {[%clk 1:32:16]} 6... Nf6 {[%clk 1:31:24]} 7. a3 {[%clk
1:30:58]} 7... Be7 {[%clk 1:30:51]} 8. Be3 {[%clk 1:30:52]} 8... O-O {[%clk
1:30:39]} 9. Be2 {[%clk 1:30:13]} 9... d6 {[%clk 1:29:02]} 10. O-O {[%clk
1:30:15]} 10... Be6 {[%clk 1:28:16]} 11. Nd5 {[%clk 1:27:44]} 11... Nxe4 {[%clk
1:20:58]} 12. Bb6 {[%clk 1:26:45]} 12... Qd7 {[%clk 1:21:18]} 13. c4 {[%clk
1:18:30]} 13... Bxd5 {[%clk 1:18:12]} 14. cxd5 {[%clk 1:18:40]} 14... Nb8 {[%clk
1:17:46]} 15. Bg4 {[%clk 1:07:06]} 15... Qb5 {[%clk 1:15:35]} 16. Ba5 {[%clk
1:01:52]} 16... Nf6 {[%clk 1:14:57]} 17. Bf3 {[%clk 0:59:59]} 17... e4 {[%clk
1:13:47]} 18. a4 {[%clk 0:59:46]} 18... Qd7 {[%clk 1:12:28]} 19. Be2 {[%clk
0:58:55]} 19... Qf5 {[%clk 1:11:50]} 20. Bc4 {[%clk 0:55:29]} 20... Nbd7 {[%clk
1:09:47]} 21. Nd4 {[%clk 0:47:34]} 21... Qg5 {[%clk 1:08:14]} 22. f4 {[%clk
0:46:20]} 22... exf3 {[%clk 1:08:18]} 23. Nxf3 {[%clk 0:46:25]} 23... Qe3+
{[%clk 1:06:44]} 24. Kh1 {[%clk 0:45:53]} 24... Ne4 {[%clk 1:03:39]} 25. Qe1
{[%clk 0:44:35]} 25... Qxe1 {[%clk 1:01:46]} 26. Raxe1 {[%clk 0:44:39]} 26...
Ndf6 {[%clk 1:01:59]} 27. Bd3 {[%clk 0:44:26]} 27... Nc5 {[%clk 1:01:12]} 28.
Rxe7 {[%clk 0:42:25]} 28... Nxd3 {[%clk 1:01:17]} 29. Rxb7 {[%clk 0:41:55]}
29... Nxd5 {[%clk 1:00:50]} 30. Nd4 {[%clk 0:36:56]} 30... Nc5 {[%clk 0:59:03]}
31. Rf5 {[%clk 0:34:01]} 31... Nxb7 {[%clk 0:59:20]} 32. Rxd5 {[%clk 0:34:24]}
32... Nxa5 {[%clk 0:59:21]} 33. Rxa5 {[%clk 0:34:46]} 33... h6 {[%clk 0:59:22]}
34. Rd5 {[%clk 0:35:03]} 34... Rac8 {[%clk 0:59:20]} 35. h3 {[%clk 0:35:24]}
35... Rc1+ {[%clk 0:59:26]} 36. Kh2 {[%clk 0:35:49]} 36... Rd1 {[%clk 0:59:51]}
37. Rxd6 {[%clk 0:36:04]} 37... g6 {[%clk 0:59:55]} 38. Nf5 {[%clk 0:35:51]}
38... Rxd6 {[%clk 1:00:09]} 39. Nxd6 {[%clk 0:36:14]} 39... Rb8 {[%clk 1:00:26]}
40. Nc4 {[%clk 0:36:40]} 40... Rb4 {[%clk 1:00:43]} 41. b3 {[%clk 0:36:47]}
41... Rxb3 {[%clk 1:01:05]} 42. a5 {[%clk 0:37:12]} 42... Rc3 {[%clk 1:01:25]}
43. Nd6 {[%clk 0:37:20]} 43... Rc5 {[%clk 1:01:40]} 44. Nb7 {[%clk 0:37:43]}
44... Rb5 {[%clk 1:02:04]} 45. Nd6 {[%clk 0:38:07]} 45... Rxa5 {[%clk 1:02:28]}
46. Nc4 {[%clk 0:38:33]} 46... Ra1 {[%clk 1:02:41]} 47. Nd2 {[%clk 0:38:57]}
47... a5 {[%clk 1:03:00]} 48. Nb3 {[%clk 0:39:23]} 48... Ra3 {[%clk 1:03:24]}
49. Nd2 {[%clk 0:39:50]} 49... a4 {[%clk 1:03:48]} 50. Nc4 {[%clk 0:40:16]}
50... Ra1 {[%clk 1:04:01]} 51. Ne3 {[%clk 0:39:56]} 51... a3 {[%clk 1:04:11]}
52. Nc2 {[%clk 0:40:24]} 52... Ra2 {[%clk 1:04:32]} 53. Nd4 {[%clk 0:40:46]}
53... Rb2 {[%clk 1:04:43]} 54. Kg3 {[%clk 0:41:03]} 54... a2 {[%clk 1:05:03]}
55. Nc6 {[%clk 0:41:28]} 55... a1=Q {[%clk 1:05:19]} 56. Ne7+ {[%clk 0:41:53]}
56... Kf8 {[%clk 1:05:36]} 57. Nc8 {[%clk 0:41:59]} 57... Rb3+ {[%clk 1:05:47]}
58. Kf4 {[%clk 0:42:22]} 58... Qd4# 0-1

[Variant "Standard"]
[Site "Europe Echecs"]

[Event "Championnat du monde jeunes U10"]
[Date "2024.11.25"]
[White "Vedrickas, Vytis"]
[Black "Chkhartishvili, Lazare"]
[WhiteElo "1642"]
[BlackElo "1836"]
[Round "10.47"]
[Result "0-1"]
[TimeControl "5400+30"]

1. e4 {[%clk 1:30:25]} 1... c5 {[%clk 1:30:55]} 2. Nf3 {[%clk 1:30:45]} 2... Nc6
{[%clk 1:31:20]} 3. d4 {[%clk 1:31:02]} 3... cxd4 {[%clk 1:31:45]} 4. Nxd4
{[%clk 1:31:22]} 4... Nf6 {[%clk 1:31:37]} 5. Nc3 {[%clk 1:29:28]} 5... e5
{[%clk 1:31:33]} 6. Ndb5 {[%clk 1:29:40]} 6... d6 {[%clk 1:31:46]} 7. Nd5 {[%clk
1:29:35]} 7... Nxd5 {[%clk 1:32:03]} 8. exd5 {[%clk 1:29:40]} 8... Nb8 {[%clk
1:32:30]} 9. c4 {[%clk 1:29:43]} 9... Be7 {[%clk 1:31:30]} 10. Bd3 {[%clk
1:29:37]} 10... O-O {[%clk 1:30:53]} 11. O-O {[%clk 1:29:31]} 11... Nd7 {[%clk
1:24:00]} 12. a3 {[%clk 1:26:16]} 12... f5 {[%clk 1:19:27]} 13. f3 {[%clk
1:26:01]} 13... Nb6 {[%clk 0:59:07]} 14. Kh1 {[%clk 1:20:26]} 14... Bd7 {[%clk
0:55:41]} 15. Nc3 {[%clk 1:19:11]} 15... Rc8 {[%clk 0:54:50]} 16. Qe2 {[%clk
1:12:16]} 16... Bf6 {[%clk 0:39:43]} 17. Be3 {[%clk 1:08:35]} 17... a6 {[%clk
0:31:04]} 18. Rac1 {[%clk 1:04:56]} 18... Qc7 19. Rc2 {[%clk 0:55:40]} 19... g6
{[%clk 0:16:41]} 20. b3 {[%clk 0:52:22]} 20... Be8 {[%clk 0:06:02]} 21. Rfc1
{[%clk 0:50:44]} 21... Nd7 {[%clk 0:05:09]} 22. Qd2 {[%clk 0:50:04]} 22... Nc5
{[%clk 0:05:13]} 23. Bxc5 {[%clk 0:50:00]} 23... dxc5 {[%clk 0:03:59]} 24. Ne2
{[%clk 0:48:33]} 24... Qe7 {[%clk 0:03:23]} 25. Ng3 {[%clk 0:48:22]} 25... Bg5
{[%clk 0:02:58]} 26. Qe2 {[%clk 0:48:27]} 26... Bxc1 {[%clk 0:03:15]} 27. Rxc1
{[%clk 0:48:51]} 27... Qd6 {[%clk 0:02:47]} 28. Re1 {[%clk 0:47:13]} 28... Bd7
{[%clk 0:02:41]} 29. Qb2 {[%clk 0:46:53]} 29... Rfe8 {[%clk 0:02:45]} 30. Rc1
{[%clk 0:46:18]} 30... b5 {[%clk 0:01:52]} 31. Qe2 {[%clk 0:44:49]} 31... Rb8
{[%clk 0:01:32]} 32. Qc2 {[%clk 0:43:41]} 32... bxc4 {[%clk 0:01:31]} 33. Bxc4
{[%clk 0:43:33]} 33... Bb5 {[%clk 0:01:18]} 34. Re1 {[%clk 0:43:06]} 34... Bxc4
{[%clk 0:01:17]} 35. Qxc4 {[%clk 0:43:34]} 35... Red8 {[%clk 0:01:17]} 36. Rd1
{[%clk 0:43:30]} 36... Kg7 {[%clk 0:01:35]} 37. Ne2 {[%clk 0:43:17]} 37... Rd7
{[%clk 0:01:33]} 38. Nc3 {[%clk 0:41:09]} 38... Rdb7 {[%clk 0:01:44]} 39. Rb1
{[%clk 0:40:57]} 39... g5 {[%clk 0:00:58]} 40. h3 {[%clk 0:40:53]} 40... h5
{[%clk 0:01:13]} 41. Na4 {[%clk 0:40:39]} 41... Rc7 {[%clk 0:01:09]} 42. Rc1
{[%clk 0:40:43]} 42... Rbc8 {[%clk 0:01:27]} 43. Rc2 {[%clk 0:40:24]} 43... g4
{[%clk 0:00:56]} 44. hxg4 {[%clk 0:39:51]} 44... hxg4 {[%clk 0:01:22]} 45. fxg4
{[%clk 0:40:09]} 45... Qh6+ {[%clk 0:01:16]} 46. Kg1 {[%clk 0:40:37]} 46... Qe3+
{[%clk 0:01:28]} 47. Rf2 {[%clk 0:39:16]} 47... Rf8 {[%clk 0:00:41]} 48. gxf5
{[%clk 0:37:57]} 48... Kh8 {[%clk 0:00:34]} 49. f6 {[%clk 0:34:25]} 49... Rh7
{[%clk 0:00:37]} 50. Qxc5 {[%clk 0:29:58]} 50... Qh6 {[%clk 0:00:40]} 51. Kf1
{[%clk 0:26:05]} 51... Rhf7 {[%clk 0:00:46]} 52. Qd6 {[%clk 0:23:00]} 52... Rxf6
{[%clk 0:00:41]} 53. Qxe5 {[%clk 0:22:59]} 53... Qc1+ {[%clk 0:01:07]} 54. Ke2
{[%clk 0:21:58]} 54... Qc2+ {[%clk 0:01:33]} 55. Ke1 {[%clk 0:21:47]} 55...
Qxf2+ {[%clk 0:01:54]} 56. Kd1 {[%clk 0:21:59]} 56... Qxg2 {[%clk 0:01:58]} 57.
Nc5 {[%clk 0:16:31]} 57... Kg8 {[%clk 0:01:52]} 58. Nd3 {[%clk 0:16:16]} 58...
Rf1+ {[%clk 0:01:23]} 59. Ne1 {[%clk 0:16:38]} 59... Rxe1+ {[%clk 0:01:49]} 0-1

[Variant "Standard"]
[Site "Europe Echecs"]

[Event "Championnat du monde jeunes U10"]
[Date "2024.11.25"]
[White "Popov, Aleksandr And"]
[Black "Fattori Dittmar, Luca"]
[WhiteElo "1651"]
[BlackElo "1766"]
[Round "10.48"]
[Result "1/2-1/2"]
[TimeControl "5400+30"]

1. e4 {[%clk 1:30:58]} 1... e6 {[%clk 1:30:54]} 2. d4 {[%clk 1:31:25]} 2... d5
{[%clk 1:31:16]} 3. e5 {[%clk 1:32:20]} 3... c5 {[%clk 1:32:06]} 4. c3 {[%clk
1:32:36]} 4... Nc6 {[%clk 1:32:29]} 5. Nf3 {[%clk 1:32:45]} 5... Qb6 {[%clk
1:32:53]} 6. a3 {[%clk 1:33:10]} 6... c4 {[%clk 1:32:44]} 7. Nbd2 {[%clk
1:33:31]} 7... Na5 {[%clk 1:33:06]} 8. Rb1 {[%clk 1:33:52]} 8... Qc7 {[%clk
1:31:43]} 9. b3 {[%clk 1:32:55]} 9... cxb3 {[%clk 1:31:21]} 10. Nxb3 {[%clk
1:33:11]} 10... Nc4 {[%clk 1:28:09]} 11. Nbd2 {[%clk 1:28:33]} 11... Nxd2 {[%clk
1:24:43]} 12. Bxd2 {[%clk 1:28:54]} 12... Ne7 {[%clk 1:24:05]} 13. Bd3 {[%clk
1:24:09]} 13... Nc6 {[%clk 1:23:26]} 14. a4 {[%clk 1:21:27]} 14... Be7 {[%clk
1:22:47]} 15. O-O {[%clk 1:21:01]} 15... O-O {[%clk 1:22:52]} 16. Qc2 {[%clk
1:19:40]} 16... h6 {[%clk 1:22:40]} 17. Qc1 {[%clk 1:18:30]} 17... Bd8 {[%clk
1:19:25]} 18. Rb2 {[%clk 1:00:49]} 18... Qe7 {[%clk 1:15:12]} 19. Bb1 {[%clk
0:57:07]} 19... f5 {[%clk 1:11:55]} 20. h4 {[%clk 0:45:52]} 20... Qf7 {[%clk
1:09:14]} 21. g3 {[%clk 0:41:24]} 21... Bb6 {[%clk 1:00:48]} 22. Kg2 {[%clk
0:36:54]} 22... Na5 {[%clk 0:56:40]} 23. Bd3 {[%clk 0:34:27]} 23... Bd7 {[%clk
0:55:06]} 24. Qc2 {[%clk 0:32:33]} 24... Rac8 {[%clk 0:53:11]} 25. Qd1 {[%clk
0:27:42]} 25... Qe8 {[%clk 0:48:24]} 26. Ra2 {[%clk 0:23:34]} 26... Qd8 {[%clk
0:45:25]} 27. Bb5 {[%clk 0:17:38]} 27... Nc4 {[%clk 0:37:47]} 28. Bxc4 {[%clk
0:16:45]} 28... Rxc4 {[%clk 0:37:24]} 29. Qb3 {[%clk 0:13:56]} 29... Qc7 {[%clk
0:29:55]} 30. Rc1 {[%clk 0:10:31]} 30... Ba5 {[%clk 0:29:24]} 31. Ng1 {[%clk
0:09:33]} 31... Qc6 {[%clk 0:24:56]} 32. Ne2 {[%clk 0:08:53]} 32... Qa6 {[%clk
0:18:32]} 33. Kf1 {[%clk 0:04:21]} 33... Rfc8 {[%clk 0:15:51]} 34. Ra3 {[%clk
0:03:24]} 34... Bb6 {[%clk 0:15:04]} 35. Rca1 {[%clk 0:03:09]} 35... Ba5 {[%clk
0:13:26]} 36. Rc1 {[%clk 0:03:31]} 36... Be8 {[%clk 0:11:33]} 37. Ke1 {[%clk
0:02:33]} 37... Qc6 {[%clk 0:09:04]} 38. Rca1 {[%clk 0:02:13]} 38... Bh5 {[%clk
0:08:26]} 39. Rc1 {[%clk 0:02:33]} 39... Bxe2 {[%clk 0:06:56]} 40. Kxe2 {[%clk
0:02:58]} 1/2-1/2

[Variant "Standard"]
[Site "Europe Echecs"]

[Event "Championnat du monde jeunes U10"]
[Date "2024.11.25"]
[White "Santoro, Marco Antonio"]
[Black "Grimm, Jakob"]
[WhiteElo "1765"]
[BlackElo "1646"]
[Round "10.1"]
[Result "1-0"]
[TimeControl "5400+30"]

1. e4 {[%clk 1:30:57]} 1... e5 {[%clk 1:30:57]} 2. Nf3 {[%clk 1:31:19]} 2... Nc6
{[%clk 1:31:24]} 3. Bc4 {[%clk 1:31:43]} 3... Bc5 {[%clk 1:31:51]} 4. d4 {[%clk
1:32:04]} 4... exd4 {[%clk 1:32:12]} 5. c3 {[%clk 1:32:26]} 5... Nf6 {[%clk
1:32:17]} 6. e5 {[%clk 1:32:48]} 6... d5 {[%clk 1:32:43]} 7. Be2 {[%clk
1:33:12]} 7... Ne4 {[%clk 1:31:28]} 8. cxd4 {[%clk 1:33:28]} 8... Bb6 {[%clk
1:31:02]} 9. O-O {[%clk 1:33:05]} 9... O-O {[%clk 1:31:01]} 10. Nc3 {[%clk
1:32:30]} 10... Bf5 {[%clk 1:30:14]} 11. Be3 {[%clk 1:30:15]} 11... f6 {[%clk
1:28:11]} 12. exf6 {[%clk 1:25:11]} 12... Rxf6 {[%clk 1:27:02]} 13. Ne5 {[%clk
1:21:06]} 13... Nxc3 {[%clk 1:20:05]} 14. bxc3 {[%clk 1:20:49]} 14... Nxe5
{[%clk 1:19:57]} 15. dxe5 {[%clk 1:20:53]} 15... Rf8 {[%clk 1:19:32]} 16. Bxb6
{[%clk 1:19:06]} 16... axb6 {[%clk 1:19:45]} 17. f4 {[%clk 1:14:59]} 17... Qd7
{[%clk 1:15:00]} 18. g4 {[%clk 0:59:59]} 18... Be4 {[%clk 1:14:55]} 19. h3
{[%clk 0:59:28]} 19... Ra3 {[%clk 1:08:16]} 20. Bd3 {[%clk 0:57:49]} 20... Qc6
{[%clk 1:03:24]} 21. Bxe4 {[%clk 0:55:18]} 21... dxe4 {[%clk 1:03:37]} 22. Rc1
{[%clk 0:52:30]} 22... Rxc3 {[%clk 0:59:00]} 23. Rxc3 {[%clk 0:52:50]} 23...
Qxc3 {[%clk 0:59:01]} 24. Qd5+ {[%clk 0:53:07]} 24... Kh8 {[%clk 0:59:25]} 25.
Qxe4 {[%clk 0:51:59]} 25... Qxh3 {[%clk 0:58:25]} 26. Qg2 {[%clk 0:52:12]} 26...
Qxg2+ {[%clk 0:58:07]} 27. Kxg2 {[%clk 0:52:38]} 27... Kg8 {[%clk 0:57:35]} 28.
f5 {[%clk 0:52:45]} 28... Kf7 {[%clk 0:57:49]} 29. Rd1 {[%clk 0:52:51]} 29...
Ke7 {[%clk 0:58:08]} 30. e6 {[%clk 0:52:38]} 30... Ra8 {[%clk 0:56:28]} 31. Rd7+
{[%clk 0:51:40]} 31... Kf6 {[%clk 0:55:53]} 32. Rf7+ {[%clk 0:51:54]} 32... Kg5
{[%clk 0:55:12]} 33. e7 {[%clk 0:52:14]} 33... Rxa2+ {[%clk 0:49:30]} 34. Kf3
{[%clk 0:51:49]} 34... Ra3+ {[%clk 0:49:50]} 35. Ke4 {[%clk 0:52:06]} 35... Ra1
{[%clk 0:49:18]} 36. Rxg7+ {[%clk 0:51:56]} 36... Kh4 {[%clk 0:49:33]} 37. Rxh7+
{[%clk 0:52:04]} 37... Kg5 {[%clk 0:48:44]} 38. Rg7+ {[%clk 0:52:13]} 38... Kh6
{[%clk 0:48:42]} 39. Rg6+ {[%clk 0:52:22]} 39... Kh7 {[%clk 0:48:42]} 40. Re6
{[%clk 0:52:37]} 40... Kg7 {[%clk 0:48:06]} 41. e8=Q {[%clk 0:52:58]} 41... Re1+
{[%clk 0:48:20]} 42. Kd3 {[%clk 0:53:20]} 42... Rd1+ {[%clk 0:48:39]} 43. Kc2
{[%clk 0:53:44]} 43... Rd2+ {[%clk 0:48:59]} 44. Kxd2 {[%clk 0:54:07]} 44... Kh7
{[%clk 0:49:15]} 45. Qg6+ {[%clk 0:54:27]} 1-0

[Variant "Standard"]
[Site "Europe Echecs"]

[Event "Championnat du monde jeunes U10"]
[Date "2024.11.25"]
[White "Kalinichenko, German Yu"]
[Black "Sander, Tino"]
[WhiteElo "1621"]
[BlackElo "1736"]
[Round "10.2"]
[Result "1-0"]
[TimeControl "5400+30"]

1. e4 {[%clk 1:30:58]} 1... e5 {[%clk 1:30:51]} 2. d4 {[%clk 1:31:24]} 2... exd4
{[%clk 1:31:04]} 3. c3 {[%clk 1:31:49]} 3... d5 {[%clk 1:30:28]} 4. exd5 {[%clk
1:32:15]} 4... Qxd5 {[%clk 1:30:41]} 5. cxd4 {[%clk 1:32:40]} 5... Nc6 {[%clk
1:29:06]} 6. Nf3 {[%clk 1:33:05]} 6... Bg4 {[%clk 1:29:24]} 7. Be2 {[%clk
1:33:25]} 7... Bb4+ {[%clk 1:29:38]} 8. Nc3 {[%clk 1:33:51]} 8... Bxf3 {[%clk
1:29:44]} 9. Bxf3 {[%clk 1:34:17]} 9... Qc4 {[%clk 1:30:01]} 10. Qb3 {[%clk
1:34:43]} 10... Qxb3 {[%clk 1:26:21]} 11. axb3 {[%clk 1:35:08]} 11... Na5 {[%clk
1:19:46]} 12. Ra4 {[%clk 1:33:47]} 12... Bxc3+ {[%clk 1:12:36]} 13. bxc3 {[%clk
1:34:14]} 13... Nxb3 {[%clk 0:59:56]} 14. Be3 {[%clk 1:34:19]} 14... c6 {[%clk
0:57:26]} 15. Ra3 {[%clk 1:33:46]} 15... Nxd4 {[%clk 0:56:52]} 16. Bxd4 {[%clk
1:34:11]} 16... f6 {[%clk 0:56:59]} 17. Rxa7 {[%clk 1:34:28]} 17... Rxa7 {[%clk
0:57:11]} 18. Bxa7 {[%clk 1:34:54]} 18... Ne7 {[%clk 0:57:11]} 19. O-O {[%clk
1:35:19]} 19... Kf7 {[%clk 0:56:47]} 20. Rb1 {[%clk 1:35:13]} 20... b5 {[%clk
0:56:57]} 21. Bc5 {[%clk 1:35:31]} 21... Rc8 {[%clk 0:56:58]} 22. Bxe7 {[%clk
1:35:15]} 22... Kxe7 {[%clk 0:57:22]} 23. Rd1 {[%clk 1:35:32]} 23... c5 {[%clk
0:52:44]} 24. Kf1 {[%clk 1:34:00]} 24... g6 {[%clk 0:47:31]} 25. Ra1 {[%clk
1:33:52]} 25... Rc7 {[%clk 0:47:18]} 26. Ke2 {[%clk 1:33:45]} 26... Kf7 {[%clk
0:44:30]} 27. Rb1 {[%clk 1:33:26]} 27... b4 {[%clk 0:41:42]} 28. cxb4 {[%clk
1:33:50]} 28... cxb4 {[%clk 0:42:04]} 29. Rxb4 {[%clk 1:34:17]} 29... Rc2+
{[%clk 0:42:15]} 30. Ke3 {[%clk 1:34:44]} 30... Kg7 {[%clk 0:41:42]} 31. Rb7+
{[%clk 1:35:03]} 31... Kh6 {[%clk 0:41:46]} 32. g3 {[%clk 1:35:06]} 32... f5
{[%clk 0:40:56]} 33. Bd5 {[%clk 1:35:20]} 33... Rc8 {[%clk 0:40:58]} 34. h4
{[%clk 1:35:39]} 34... Rh8 {[%clk 0:40:18]} 35. Ra7 {[%clk 1:35:36]} 35... Rd8
{[%clk 0:40:12]} 36. Kd4 {[%clk 1:35:15]} 36... Re8 {[%clk 0:39:41]} 37. f3
{[%clk 1:35:22]} 37... Rb8 {[%clk 0:38:14]} 38. Rb7 {[%clk 1:34:49]} 38... Re8
{[%clk 0:38:01]} 39. g4 {[%clk 1:34:55]} 39... fxg4 {[%clk 0:36:31]} 40. fxg4
{[%clk 1:35:20]} 40... Rh8 {[%clk 0:31:33]} 41. Ke5 {[%clk 1:35:03]} 41... g5
{[%clk 0:28:38]} 42. Kf6 {[%clk 1:33:00]} 42... gxh4 {[%clk 0:23:36]} 43. g5+
{[%clk 1:33:20]} 43... Kh5 {[%clk 0:00:00]} 44. Bf3# {[%clk 1:34:07]} 1-0

[Variant "Standard"]
[Site "Europe Echecs"]

[Event "Championnat du monde jeunes U10"]
[Date "2024.11.25"]
[White "Mitrovic, Vasilije"]
[Black "Larionov, Serghei"]
[WhiteElo "1590"]
[BlackElo "1720"]
[Round "10.3"]
[Result "1/2-1/2"]
[TimeControl "5400+30"]

1. e4 {[%clk 1:30:57]} 1... e5 {[%clk 1:30:53]} 2. Nf3 {[%clk 1:31:00]} 2... Nc6
{[%clk 1:30:40]} 3. Bc4 {[%clk 1:30:58]} 3... Bc5 {[%clk 1:29:29]} 4. c3 {[%clk
1:30:29]} 4... Nf6 {[%clk 1:29:53]} 5. d4 {[%clk 1:28:33]} 5... exd4 {[%clk
1:30:04]} 6. cxd4 {[%clk 1:28:40]} 6... Bb4+ {[%clk 1:30:30]} 7. Bd2 {[%clk
1:28:35]} 7... Bxd2+ {[%clk 1:30:46]} 8. Nbxd2 {[%clk 1:28:37]} 8... d5 {[%clk
1:27:39]} 9. exd5 {[%clk 1:27:24]} 9... Nxd5 {[%clk 1:27:09]} 10. O-O {[%clk
1:26:47]} 10... O-O {[%clk 1:25:42]} 11. Rc1 {[%clk 1:23:47]} 11... Nb6 {[%clk
1:14:54]} 12. Bb3 {[%clk 1:15:28]} 12... Bf5 {[%clk 0:53:36]} 13. Re1 {[%clk
0:51:52]} 13... Nb4 {[%clk 0:36:12]} 14. Re3 {[%clk 0:39:54]} 14... N4d5 {[%clk
0:28:15]} 15. Re1 {[%clk 0:37:11]} 15... c6 {[%clk 0:27:55]} 16. Nc4 {[%clk
0:31:02]} 16... Nxc4 {[%clk 0:28:15]} 17. Bxc4 {[%clk 0:30:30]} 17... Nb6 {[%clk
0:26:17]} 18. Bb3 {[%clk 0:28:55]} 18... Bg4 {[%clk 0:25:29]} 19. Re3 {[%clk
0:26:44]} 19... Qd6 {[%clk 0:20:52]} 20. h3 {[%clk 0:23:30]} 20... Bh5 {[%clk
0:20:33]} 21. g4 {[%clk 0:21:22]} 21... Bg6 {[%clk 0:20:02]} 22. Nh4 {[%clk
0:16:12]} 22... Nd5 {[%clk 0:17:18]} 23. Bxd5 {[%clk 0:15:13]} 23... Qxd5 {[%clk
0:15:42]} 24. Nxg6 {[%clk 0:14:15]} 24... fxg6 {[%clk 0:13:25]} 25. Qb3 {[%clk
0:12:13]} 25... Qxb3 {[%clk 0:13:47]} 26. axb3 {[%clk 0:10:42]} 26... Rfe8
{[%clk 0:13:43]} 27. Rce1 {[%clk 0:10:02]} 27... Kf7 {[%clk 0:10:00]} 1/2-1/2

[Variant "Standard"]
[Site "Europe Echecs"]